[Event "Titled Tuesday Blitz April 19 Late 2022"]
[White "Hoffmann, Asa"]
[Black "Mortazavi, Ali"]
[WhiteFideId "2001470"]
[BlackFideId "401323"]
[WhiteElo "2117"]
[BlackElo "2339"]
[Result "1-0"]
[Round "04"]
[TimeControl "180+1"]
[Date "2022.04.19"]
[WhiteClock "0:00:44"]
[BlackClock "0:00:05"]

1. d4 {[%clk 0:02:55]}  Nf6 {[%clk 0:02:59]} 2. Bg5 {[%clk 0:02:51]}  Ne4 {[%clk 0:02:59]} 3. Bf4 {[%clk 0:02:51]}  d5 {[%clk 0:03:00]} 4. f3 {[%clk 0:02:48]}  Nf6 {[%clk 0:02:59]} 5. e4 {[%clk 0:02:47]}  e6 {[%clk 0:02:59]} 6. e5 {[%clk 0:02:46]}  Nfd7 {[%clk 0:02:59]} 7. Be3 {[%clk 0:02:46]}  b6 {[%clk 0:02:59]} 8. f4 {[%clk 0:02:42]}  g6 {[%clk 0:02:58]} 9. Nf3 {[%clk 0:02:41]}  c5 {[%clk 0:02:57]} 10. c3 {[%clk 0:02:39]}  Be7 {[%clk 0:02:53]} 11. h4 {[%clk 0:02:39]}  h5 {[%clk 0:02:52]} 12. Bd3 {[%clk 0:02:38]}  Ba6 {[%clk 0:02:52]} 13. Bc2 {[%clk 0:02:34]}  Nc6 {[%clk 0:02:49]} 14. a3 {[%clk 0:02:33]}  cxd4 {[%clk 0:02:45]} 15. cxd4 {[%clk 0:02:33]}  Na5 {[%clk 0:02:42]} 16. Nc3 {[%clk 0:02:29]}  Rc8 {[%clk 0:02:41]} 17. Kf2 {[%clk 0:02:23]}  Nc4 {[%clk 0:02:30]} 18. Bc1 {[%clk 0:02:22]}  Nxa3 {[%clk 0:01:58]} 19. Ba4 {[%clk 0:02:01]}  b5 {[%clk 0:01:54]} 20. Bb3 {[%clk 0:01:57]}  Qb6 {[%clk 0:01:26]} 21. Bxd5 {[%clk 0:01:44]}  exd5 {[%clk 0:01:20]} 22. Nxd5 {[%clk 0:01:43]}  Qc6 {[%clk 0:01:19]} 23. Nxe7 {[%clk 0:01:40]}  Kxe7 {[%clk 0:01:19]} 24. Rxa3 {[%clk 0:01:39]}  Bb7 {[%clk 0:01:20]} 25. Be3 {[%clk 0:01:36]}  Nb6 {[%clk 0:01:15]} 26. Rxa7 {[%clk 0:01:32]}  Rc7 {[%clk 0:01:05]} 27. Qb3 {[%clk 0:01:14]}  Rd8 {[%clk 0:00:49]} 28. Rc1 {[%clk 0:01:10]}  Nc4 {[%clk 0:00:49]} 29. Qb4+ {[%clk 0:01:00]}  Ke6 {[%clk 0:00:39]} 30. b3 {[%clk 0:00:55]}  Qb6 {[%clk 0:00:29]} 31. d5+ {[%clk 0:00:53]}  Rxd5 {[%clk 0:00:12]} 32. Bxb6 {[%clk 0:00:52]}  Rcd7 {[%clk 0:00:04]} 33. bxc4 {[%clk 0:00:51]}  bxc4 {[%clk 0:00:04]} 34. Qxc4 {[%clk 0:00:51]}  Kf5 {[%clk 0:00:05]} 35. Be3 {[%clk 0:00:44]} 1-0


[Site "https://www.chess.com"]

[Event "Titled Tuesday Blitz April 19 Late 2022"]
[White "Holt, Conrad"]
[Black "Pinheiro, Iung Alicio de O."]
[WhiteFideId "2034387"]
[BlackFideId "2104350"]
[WhiteElo "2586"]
[BlackElo "2594"]
[Result "1-0"]
[Round "04"]
[TimeControl "180+1"]
[Date "2022.04.19"]
[WhiteClock "0:00:21"]
[BlackClock "0:00:04"]

1. d4 {[%clk 0:02:57]}  Nf6 {[%clk 0:02:59]} 2. c4 {[%clk 0:02:58]}  g6 {[%clk 0:02:58]} 3. Nc3 {[%clk 0:02:58]}  d5 {[%clk 0:02:58]} 4. e3 {[%clk 0:02:56]}  Bg7 {[%clk 0:02:57]} 5. Qb3 {[%clk 0:02:56]}  dxc4 {[%clk 0:02:20]} 6. Bxc4 {[%clk 0:02:56]}  O-O {[%clk 0:02:20]} 7. Nf3 {[%clk 0:02:56]}  c5 {[%clk 0:02:20]} 8. O-O {[%clk 0:02:51]}  Nc6 {[%clk 0:02:18]} 9. Ne5 {[%clk 0:02:50]}  e6 {[%clk 0:02:08]} 10. Nxc6 {[%clk 0:02:49]}  bxc6 {[%clk 0:02:09]} 11. dxc5 {[%clk 0:02:49]}  Qa5 {[%clk 0:02:07]} 12. e4 {[%clk 0:02:44]}  Nd7 {[%clk 0:02:04]} 13. Be3 {[%clk 0:02:40]}  Rb8 {[%clk 0:01:54]} 14. Qc2 {[%clk 0:02:40]}  Rxb2 {[%clk 0:01:25]} 15. Qxb2 {[%clk 0:02:39]}  Bxc3 {[%clk 0:01:25]} 16. Qc1 {[%clk 0:02:35]}  Ne5 {[%clk 0:00:54]} 17. Be2 {[%clk 0:02:29]}  Bxa1 {[%clk 0:00:49]} 18. Qxa1 {[%clk 0:02:29]}  f6 {[%clk 0:00:50]} 19. f4 {[%clk 0:02:22]}  Nd7 {[%clk 0:00:49]} 20. Bc4 {[%clk 0:02:13]}  Re8 {[%clk 0:00:48]} 21. f5 {[%clk 0:02:12]}  Ne5 {[%clk 0:00:43]} 22. fxg6 {[%clk 0:02:09]}  hxg6 {[%clk 0:00:37]} 23. Rxf6 {[%clk 0:02:07]}  Qa3 {[%clk 0:00:23]} 24. Bf4 {[%clk 0:01:46]}  Qxc5+ {[%clk 0:00:21]} 25. Kh1 {[%clk 0:01:44]}  Qxc4 {[%clk 0:00:14]} 26. Bxe5 {[%clk 0:01:40]}  Rf8 {[%clk 0:00:15]} 27. Rxf8+ {[%clk 0:00:32]}  Kxf8 {[%clk 0:00:16]} 28. Qd1 {[%clk 0:00:29]}  Bd7 {[%clk 0:00:08]} 29. h3 {[%clk 0:00:24]}  Qxe4 {[%clk 0:00:06]} 30. Qd6+ {[%clk 0:00:21]}  Ke8 {[%clk 0:00:06]} 31. Bf6 {[%clk 0:00:21]}  Qe1+ {[%clk 0:00:04]} 32. Kh2 {[%clk 0:00:21]} 1-0


[Site "https://www.chess.com"]

[Event "Titled Tuesday Blitz April 19 Late 2022"]
[White "Ivanisevic, Ivan"]
[Black "Oparin, Grigoriy"]
[WhiteFideId "912417"]
[BlackFideId "24125890"]
[WhiteElo "2495"]
[BlackElo "2665"]
[Result "0-1"]
[Round "04"]
[TimeControl "180+1"]
[Date "2022.04.19"]
[WhiteClock "0:00:10"]
[BlackClock "0:01:09"]

1. d4 {[%clk 0:03:00]}  Nf6 {[%clk 0:02:59]} 2. c4 {[%clk 0:03:00]}  e6 {[%clk 0:03:00]} 3. Nc3 {[%clk 0:03:00]}  Bb4 {[%clk 0:03:01]} 4. e3 {[%clk 0:03:00]}  O-O {[%clk 0:03:01]} 5. Bd3 {[%clk 0:03:01]}  c5 {[%clk 0:03:01]} 6. Ne2 {[%clk 0:02:59]}  cxd4 {[%clk 0:03:00]} 7. exd4 {[%clk 0:03:00]}  d5 {[%clk 0:03:00]} 8. cxd5 {[%clk 0:03:01]}  Nxd5 {[%clk 0:03:00]} 9. Bc2 {[%clk 0:03:02]}  Nc6 {[%clk 0:02:59]} 10. Qd3 {[%clk 0:03:01]}  g6 {[%clk 0:02:57]} 11. O-O {[%clk 0:03:00]}  Bd6 {[%clk 0:02:56]} 12. Bb3 {[%clk 0:02:57]}  Qh4 {[%clk 0:02:51]} 13. g3 {[%clk 0:02:54]}  Qh5 {[%clk 0:02:50]} 14. Ne4 {[%clk 0:02:49]}  Be7 {[%clk 0:02:46]} 15. Nf4 {[%clk 0:02:48]}  Nxf4 {[%clk 0:02:46]} 16. Bxf4 {[%clk 0:02:49]}  Rd8 {[%clk 0:02:41]} 17. Be3 {[%clk 0:02:16]}  Ne5 {[%clk 0:02:36]} 18. Qd1 {[%clk 0:02:10]}  Nf3+ {[%clk 0:01:33]} 19. Kg2 {[%clk 0:02:09]}  e5 {[%clk 0:01:34]} 20. Bxf7+ {[%clk 0:01:28]}  Kg7 {[%clk 0:01:34]} 21. h4 {[%clk 0:01:28]}  Bg4 {[%clk 0:01:33]} 22. Qb3 {[%clk 0:01:28]}  Nxh4+ {[%clk 0:01:18]} 23. gxh4 {[%clk 0:01:21]}  Bf3+ {[%clk 0:01:18]} 24. Kg1 {[%clk 0:01:06]}  Bxe4 {[%clk 0:01:18]} 25. f3 {[%clk 0:00:55]}  Bf5 {[%clk 0:01:18]} 26. Rf2 {[%clk 0:00:37]}  exd4 {[%clk 0:01:14]} 27. Bf4 {[%clk 0:00:35]}  Qxh4 {[%clk 0:01:13]} 28. Be5+ {[%clk 0:00:31]}  Bf6 {[%clk 0:01:13]} 29. Bxf6+ {[%clk 0:00:11]}  Qxf6 {[%clk 0:01:14]} 30. Bc4 {[%clk 0:00:11]}  Rd7 {[%clk 0:01:11]} 31. Rd1 {[%clk 0:00:11]}  Rad8 {[%clk 0:01:10]} 32. Bf1 {[%clk 0:00:10]}  d3 {[%clk 0:01:10]} 33. Qc3 {[%clk 0:00:09]}  Qxc3 {[%clk 0:01:08]} 34. bxc3 {[%clk 0:00:10]}  d2 {[%clk 0:01:09]} 0-1


[Site "https://www.chess.com"]

[Event "Titled Tuesday Blitz April 19 Late 2022"]
[White "Janturin, Artur"]
[Black "Lewtak, Damian"]
[WhiteFideId "4130022"]
[BlackFideId "1141724"]
[WhiteElo "2383"]
[BlackElo "2362"]
[Result "0-1"]
[Round "04"]
[TimeControl "180+1"]
[Date "2022.04.19"]
[WhiteClock "0:00:06"]
[BlackClock "0:01:00"]

1. b3 {[%clk 0:03:00]}  a5 {[%clk 0:02:59]} 2. Bb2 {[%clk 0:02:59]}  a4 {[%clk 0:02:59]} 3. b4 {[%clk 0:02:59]}  Nf6 {[%clk 0:02:58]} 4. a3 {[%clk 0:02:59]}  g6 {[%clk 0:02:58]} 5. Bxf6 {[%clk 0:02:52]}  exf6 {[%clk 0:02:58]} 6. c4 {[%clk 0:02:53]}  Bg7 {[%clk 0:02:59]} 7. Nc3 {[%clk 0:02:53]}  f5 {[%clk 0:02:58]} 8. g3 {[%clk 0:02:52]}  O-O {[%clk 0:02:57]} 9. Bg2 {[%clk 0:02:52]}  Nc6 {[%clk 0:02:55]} 10. Nf3 {[%clk 0:02:26]}  d6 {[%clk 0:02:55]} 11. d4 {[%clk 0:02:02]}  Bd7 {[%clk 0:02:50]} 12. O-O {[%clk 0:02:00]}  Ne7 {[%clk 0:02:43]} 13. Qc2 {[%clk 0:01:27]}  Re8 {[%clk 0:02:37]} 14. Rac1 {[%clk 0:01:15]}  Bc6 {[%clk 0:02:29]} 15. b5 {[%clk 0:01:15]}  Bxf3 {[%clk 0:02:25]} 16. Bxf3 {[%clk 0:01:15]}  c6 {[%clk 0:02:22]} 17. e3 {[%clk 0:01:11]}  Qa5 {[%clk 0:02:19]} 18. Rb1 {[%clk 0:01:05]}  c5 {[%clk 0:02:10]} 19. Bxb7 {[%clk 0:00:58]}  Rab8 {[%clk 0:02:10]} 20. Bg2 {[%clk 0:00:47]}  cxd4 {[%clk 0:02:09]} 21. exd4 {[%clk 0:00:47]}  Bxd4 {[%clk 0:02:09]} 22. Nd5 {[%clk 0:00:44]}  Nxd5 {[%clk 0:02:08]} 23. Bxd5 {[%clk 0:00:45]}  Bc5 {[%clk 0:02:08]} 24. Kg2 {[%clk 0:00:40]}  Re5 {[%clk 0:02:06]} 25. Qb2 {[%clk 0:00:32]}  h5 {[%clk 0:01:53]} 26. h4 {[%clk 0:00:31]}  Qb6 {[%clk 0:01:49]} 27. Qc2 {[%clk 0:00:29]}  Rbe8 {[%clk 0:01:47]} 28. Qxa4 {[%clk 0:00:28]}  Re2 {[%clk 0:01:42]} 29. Qa6 {[%clk 0:00:28]}  Bxf2 {[%clk 0:01:41]} 30. Qxb6 {[%clk 0:00:25]}  Bxb6+ {[%clk 0:01:42]} 31. Kh3 {[%clk 0:00:20]}  R8e3 {[%clk 0:01:35]} 32. Rf3 {[%clk 0:00:19]}  Rxf3 {[%clk 0:01:34]} 33. Bxf3 {[%clk 0:00:20]}  Re3 {[%clk 0:01:33]} 34. Bd5 {[%clk 0:00:19]}  f4 {[%clk 0:01:29]} 35. a4 {[%clk 0:00:15]}  Rxg3+ {[%clk 0:01:29]} 36. Kh2 {[%clk 0:00:15]}  Ra3 {[%clk 0:01:29]} 37. Re1 {[%clk 0:00:15]}  Be3 {[%clk 0:01:26]} 38. Rb1 {[%clk 0:00:15]}  Bb6 {[%clk 0:01:21]} 39. Re1 {[%clk 0:00:15]}  Kf8 {[%clk 0:01:16]} 40. Rf1 {[%clk 0:00:15]}  Be3 {[%clk 0:01:14]} 41. Rb1 {[%clk 0:00:15]}  Bb6 {[%clk 0:01:09]} 42. Rf1 {[%clk 0:00:15]}  Rxa4 {[%clk 0:01:06]} 43. Rxf4 {[%clk 0:00:15]}  f5 {[%clk 0:01:05]} 44. Rf3 {[%clk 0:00:13]}  Ra2+ {[%clk 0:01:04]} 45. Kh3 {[%clk 0:00:12]}  Bd4 {[%clk 0:01:03]} 46. Rg3 {[%clk 0:00:09]}  Be5 {[%clk 0:01:01]} 47. Rg2 {[%clk 0:00:06]}  Ra3+ {[%clk 0:01:00]} 0-1


[Site "https://www.chess.com"]

[Event "Titled Tuesday Blitz April 19 Late 2022"]
[White "Jarocka, Liwia"]
[Black "Sirosh, Ilja"]
[WhiteFideId "21807558"]
[BlackFideId "4500458"]
[WhiteElo "1896"]
[BlackElo "2241"]
[Result "0-1"]
[Round "04"]
[TimeControl "180+1"]
[Date "2022.04.19"]
[WhiteClock "0:00:12"]
[BlackClock "0:00:28"]

1. Nf3 {[%clk 0:03:00]}  Nf6 {[%clk 0:02:58]} 2. b3 {[%clk 0:03:00]}  g6 {[%clk 0:02:58]} 3. Bb2 {[%clk 0:03:01]}  Bg7 {[%clk 0:02:58]} 4. g3 {[%clk 0:03:01]}  d5 {[%clk 0:02:56]} 5. Bg2 {[%clk 0:03:01]}  c5 {[%clk 0:02:56]} 6. O-O {[%clk 0:03:01]}  Nc6 {[%clk 0:02:56]} 7. e3 {[%clk 0:03:01]}  O-O {[%clk 0:02:55]} 8. d4 {[%clk 0:03:01]}  cxd4 {[%clk 0:02:55]} 9. exd4 {[%clk 0:03:00]}  Bg4 {[%clk 0:02:55]} 10. Nbd2 {[%clk 0:02:58]}  Ne4 {[%clk 0:02:51]} 11. h3 {[%clk 0:02:52]}  Nxd2 {[%clk 0:02:51]} 12. Qxd2 {[%clk 0:02:51]}  Bxf3 {[%clk 0:02:51]} 13. Bxf3 {[%clk 0:02:51]}  e6 {[%clk 0:02:51]} 14. c4 {[%clk 0:02:48]}  dxc4 {[%clk 0:02:49]} 15. Bxc6 {[%clk 0:02:45]}  bxc6 {[%clk 0:02:49]} 16. bxc4 {[%clk 0:02:46]}  c5 {[%clk 0:02:48]} 17. Rfd1 {[%clk 0:02:44]}  cxd4 {[%clk 0:02:48]} 18. Bxd4 {[%clk 0:02:44]}  Bxd4 {[%clk 0:02:44]} 19. Qxd4 {[%clk 0:02:44]}  Qxd4 {[%clk 0:02:43]} 20. Rxd4 {[%clk 0:02:44]}  Rfc8 {[%clk 0:02:43]} 21. Rc1 {[%clk 0:02:41]}  Rc5 {[%clk 0:02:42]} 22. Kf1 {[%clk 0:02:34]}  Rb8 {[%clk 0:02:40]} 23. Rd2 {[%clk 0:02:31]}  Rb4 {[%clk 0:02:37]} 24. Rdc2 {[%clk 0:02:31]}  Ra4 {[%clk 0:02:36]} 25. h4 {[%clk 0:02:27]}  h5 {[%clk 0:02:35]} 26. Ke2 {[%clk 0:02:27]}  Ra3 {[%clk 0:02:34]} 27. Rb2 {[%clk 0:02:16]}  Kg7 {[%clk 0:02:33]} 28. Rcc2 {[%clk 0:02:16]}  Ra4 {[%clk 0:02:23]} 29. Rb7 {[%clk 0:02:08]}  Kf6 {[%clk 0:02:06]} 30. Kd3 {[%clk 0:02:02]}  e5 {[%clk 0:02:06]} 31. Rb5 {[%clk 0:01:57]}  Rc6 {[%clk 0:01:45]} 32. Rb8 {[%clk 0:01:29]}  Kf5 {[%clk 0:01:37]} 33. Rb7 {[%clk 0:01:27]}  f6 {[%clk 0:01:36]} 34. c5 {[%clk 0:01:26]}  e4+ {[%clk 0:01:26]} 35. Ke2 {[%clk 0:01:26]}  Ra5 {[%clk 0:01:09]} 36. Rd7 {[%clk 0:01:21]}  Ke6 {[%clk 0:01:03]} 37. Rg7 {[%clk 0:01:16]}  Raxc5 {[%clk 0:01:01]} 38. Rxc5 {[%clk 0:01:16]}  Rxc5 {[%clk 0:01:02]} 39. Rxa7 {[%clk 0:01:16]}  g5 {[%clk 0:00:56]} 40. hxg5 {[%clk 0:01:12]}  fxg5 {[%clk 0:00:57]} 41. a4 {[%clk 0:01:09]}  Kf5 {[%clk 0:00:52]} 42. Kf1 {[%clk 0:01:00]}  e3 {[%clk 0:00:40]} 43. fxe3 {[%clk 0:00:38]}  Kg4 {[%clk 0:00:39]} 44. e4 {[%clk 0:00:19]}  Kxg3 {[%clk 0:00:36]} 45. a5 {[%clk 0:00:19]}  h4 {[%clk 0:00:32]} 46. a6 {[%clk 0:00:19]}  h3 {[%clk 0:00:32]} 47. Rh7 {[%clk 0:00:18]}  Ra5 {[%clk 0:00:29]} 48. a7 {[%clk 0:00:16]}  h2 {[%clk 0:00:29]} 49. e5 {[%clk 0:00:16]}  Rxa7 {[%clk 0:00:29]} 50. Rh5 {[%clk 0:00:13]}  h1=Q+ {[%clk 0:00:28]} 51. Rxh1 {[%clk 0:00:12]}  Ra1+ {[%clk 0:00:28]} 0-1


[Site "https://www.chess.com"]

[Event "Titled Tuesday Blitz April 19 Late 2022"]
[White "Kaasen, Tor Fredrik"]
[Black "Paravyan, David"]
[WhiteFideId "1516647"]
[BlackFideId "4194985"]
[WhiteElo "2335"]
[BlackElo "2569"]
[Result "1/2-1/2"]
[Round "04"]
[TimeControl "180+1"]
[Date "2022.04.19"]
[WhiteClock "0:00:34"]
[BlackClock "0:00:05"]

1. d4 {[%clk 0:03:00]}  Nf6 {[%clk 0:03:00]} 2. c4 {[%clk 0:03:01]}  g6 {[%clk 0:03:00]} 3. g3 {[%clk 0:03:01]}  c6 {[%clk 0:03:00]} 4. Bg2 {[%clk 0:03:01]}  d5 {[%clk 0:03:01]} 5. Nf3 {[%clk 0:03:01]}  Bg7 {[%clk 0:03:00]} 6. O-O {[%clk 0:03:02]}  O-O {[%clk 0:03:01]} 7. Qb3 {[%clk 0:03:03]}  Qb6 {[%clk 0:03:00]} 8. Nc3 {[%clk 0:03:02]}  Rd8 {[%clk 0:03:00]} 9. Bd2 {[%clk 0:03:02]}  Bf5 {[%clk 0:03:00]} 10. Qxb6 {[%clk 0:02:58]}  axb6 {[%clk 0:03:00]} 11. cxd5 {[%clk 0:02:50]}  cxd5 {[%clk 0:02:57]} 12. Rfc1 {[%clk 0:02:50]}  Nc6 {[%clk 0:02:57]} 13. e3 {[%clk 0:02:40]}  Ne4 {[%clk 0:02:31]} 14. Nxe4 {[%clk 0:02:38]}  Bxe4 {[%clk 0:02:31]} 15. Ne1 {[%clk 0:02:35]}  Bxg2 {[%clk 0:02:31]} 16. Kxg2 {[%clk 0:02:36]}  Ra4 {[%clk 0:01:48]} 17. Nd3 {[%clk 0:02:26]}  e5 {[%clk 0:01:47]} 18. dxe5 {[%clk 0:02:20]}  Nxe5 {[%clk 0:01:48]} 19. Nxe5 {[%clk 0:02:16]}  Bxe5 {[%clk 0:01:48]} 20. Bc3 {[%clk 0:02:15]}  Bxc3 {[%clk 0:01:23]} 21. Rxc3 {[%clk 0:02:16]}  Rda8 {[%clk 0:01:10]} 22. Rb3 {[%clk 0:01:51]}  Rxa2 {[%clk 0:00:41]} 23. Rxa2 {[%clk 0:01:51]}  Rxa2 {[%clk 0:00:42]} 24. Rxb6 {[%clk 0:01:51]}  Ra4 {[%clk 0:00:18]} 25. b4 {[%clk 0:01:30]}  Ra2 {[%clk 0:00:15]} 26. Rxb7 {[%clk 0:01:29]}  d4 {[%clk 0:00:12]} 27. exd4 {[%clk 0:01:27]}  Rd2 {[%clk 0:00:12]} 28. b5 {[%clk 0:01:22]}  Rxd4 {[%clk 0:00:13]} 29. b6 {[%clk 0:01:22]}  Rb4 {[%clk 0:00:13]} 30. Kf3 {[%clk 0:01:23]}  Kg7 {[%clk 0:00:13]} 31. Ke3 {[%clk 0:01:23]}  Kf6 {[%clk 0:00:13]} 32. Kd3 {[%clk 0:01:18]}  Ke6 {[%clk 0:00:10]} 33. Kc3 {[%clk 0:01:18]}  Rb1 {[%clk 0:00:11]} 34. Rb8 {[%clk 0:01:17]}  h5 {[%clk 0:00:11]} 35. Kc4 {[%clk 0:01:13]}  Kd6 {[%clk 0:00:08]} 36. b7 {[%clk 0:01:09]}  Ke7 {[%clk 0:00:05]} 37. h3 {[%clk 0:00:54]}  Kf6 {[%clk 0:00:05]} 38. Kd5 {[%clk 0:00:50]}  Kg7 {[%clk 0:00:05]} 39. Ke4 {[%clk 0:00:46]}  Rb2 {[%clk 0:00:05]} 40. Ke3 {[%clk 0:00:46]}  Rb1 {[%clk 0:00:06]} 41. g4 {[%clk 0:00:46]}  hxg4 {[%clk 0:00:06]} 42. hxg4 {[%clk 0:00:47]}  Rb2 {[%clk 0:00:06]} 43. f4 {[%clk 0:00:46]}  Rb1 {[%clk 0:00:06]} 44. Kd4 {[%clk 0:00:43]}  Rb2 {[%clk 0:00:06]} 45. Kc5 {[%clk 0:00:43]}  Rb1 {[%clk 0:00:07]} 46. Kd6 {[%clk 0:00:43]}  Rb2 {[%clk 0:00:06]} 47. Kc6 {[%clk 0:00:43]}  Rc2+ {[%clk 0:00:06]} 48. Kd5 {[%clk 0:00:42]}  Rb2 {[%clk 0:00:07]} 49. g5 {[%clk 0:00:41]}  Rb1 {[%clk 0:00:07]} 50. Ke5 {[%clk 0:00:41]}  Rb2 {[%clk 0:00:07]} 51. f5 {[%clk 0:00:41]}  gxf5 {[%clk 0:00:05]} 52. Kxf5 {[%clk 0:00:42]}  Rb1 {[%clk 0:00:05]} 53. Ke5 {[%clk 0:00:39]}  Rb2 {[%clk 0:00:05]} 54. Kf4 {[%clk 0:00:34]} 1/2-1/2


[Site "https://www.chess.com"]

[Event "Titled Tuesday Blitz April 19 Late 2022"]
[White "Kaganskiy, Gleb"]
[Black "Zivkovic, Nemanja"]
[WhiteFideId "4132025"]
[BlackFideId "942154"]
[WhiteElo "2165"]
[BlackElo "2364"]
[Result "0-1"]
[Round "04"]
[TimeControl "180+1"]
[Date "2022.04.19"]
[WhiteClock "0:00:20"]
[BlackClock "0:00:53"]

1. e4 {[%clk 0:03:00]}  c5 {[%clk 0:02:56]} 2. Nf3 {[%clk 0:02:57]}  d6 {[%clk 0:02:56]} 3. Bb5+ {[%clk 0:02:55]}  Nd7 {[%clk 0:02:56]} 4. O-O {[%clk 0:02:54]}  a6 {[%clk 0:02:55]} 5. Bxd7+ {[%clk 0:02:52]}  Bxd7 {[%clk 0:02:56]} 6. d4 {[%clk 0:02:50]}  cxd4 {[%clk 0:02:55]} 7. Qxd4 {[%clk 0:02:50]}  Rc8 {[%clk 0:02:55]} 8. c4 {[%clk 0:02:48]}  Nf6 {[%clk 0:02:55]} 9. Nc3 {[%clk 0:02:46]}  e6 {[%clk 0:02:55]} 10. Bg5 {[%clk 0:02:44]}  Be7 {[%clk 0:02:55]} 11. Rad1 {[%clk 0:02:42]}  Bc6 {[%clk 0:02:55]} 12. e5 {[%clk 0:02:37]}  dxe5 {[%clk 0:02:54]} 13. Nxe5 {[%clk 0:02:35]}  Qxd4 {[%clk 0:02:52]} 14. Rxd4 {[%clk 0:02:36]}  h6 {[%clk 0:02:48]} 15. Nxc6 {[%clk 0:02:27]}  Rxc6 {[%clk 0:02:41]} 16. Be3 {[%clk 0:02:22]}  Bc5 {[%clk 0:02:35]} 17. Rh4 {[%clk 0:02:17]}  Bxe3 {[%clk 0:02:32]} 18. fxe3 {[%clk 0:02:18]}  O-O {[%clk 0:02:32]} 19. b3 {[%clk 0:02:16]}  b5 {[%clk 0:02:31]} 20. Ne4 {[%clk 0:02:12]}  Nd7 {[%clk 0:02:20]} 21. cxb5 {[%clk 0:02:09]}  axb5 {[%clk 0:02:21]} 22. Rh5 {[%clk 0:01:54]}  Rb8 {[%clk 0:02:15]} 23. Rd1 {[%clk 0:01:51]}  Rc7 {[%clk 0:02:05]} 24. Nd6 {[%clk 0:01:47]}  Nf6 {[%clk 0:02:02]} 25. Rh4 {[%clk 0:01:42]}  b4 {[%clk 0:01:56]} 26. Rc4 {[%clk 0:01:40]}  Ra7 {[%clk 0:01:51]} 27. Rdd4 {[%clk 0:01:33]}  Rxa2 {[%clk 0:01:47]} 28. Rxb4 {[%clk 0:01:33]}  Rd8 {[%clk 0:01:45]} 29. Rb7 {[%clk 0:01:21]}  Nd5 {[%clk 0:01:43]} 30. Nxf7 {[%clk 0:01:20]}  Rf8 {[%clk 0:01:39]} 31. Nxh6+ {[%clk 0:00:56]}  gxh6 {[%clk 0:01:24]} 32. Rg4+ {[%clk 0:00:54]}  Kh8 {[%clk 0:01:24]} 33. h4 {[%clk 0:00:54]}  Nxe3 {[%clk 0:01:03]} 34. Rgg7 {[%clk 0:00:43]}  Nf5 {[%clk 0:01:03]} 35. Rh7+ {[%clk 0:00:40]}  Kg8 {[%clk 0:01:03]} 36. g4 {[%clk 0:00:37]}  Rd8 {[%clk 0:01:00]} 37. Rhd7 {[%clk 0:00:28]}  Rxd7 {[%clk 0:00:59]} 38. Rxd7 {[%clk 0:00:29]}  Nxh4 {[%clk 0:01:00]} 39. Re7 {[%clk 0:00:26]}  Nf3+ {[%clk 0:00:59]} 40. Kf1 {[%clk 0:00:24]}  e5 {[%clk 0:00:59]} 41. b4 {[%clk 0:00:23]}  Rb2 {[%clk 0:00:58]} 42. Rb7 {[%clk 0:00:21]}  e4 {[%clk 0:00:53]} 43. b5 {[%clk 0:00:20]}  e3 {[%clk 0:00:53]} 44. Re7 {[%clk 0:00:20]}  Rf2# {[%clk 0:00:53]} 0-1


[Site "https://www.chess.com"]

[Event "Titled Tuesday Blitz April 19 Late 2022"]
[White "Kamsky, Gata"]
[Black "Spata, German"]
[WhiteFideId "2000024"]
[BlackFideId "113026"]
[WhiteElo "2645"]
[BlackElo "2238"]
[Result "1-0"]
[Round "04"]
[TimeControl "180+1"]
[Date "2022.04.19"]
[WhiteClock "0:01:05"]
[BlackClock "0:00:53"]

1. e4 {[%clk 0:03:00]}  d6 {[%clk 0:02:57]} 2. d4 {[%clk 0:02:59]}  g6 {[%clk 0:02:56]} 3. Nc3 {[%clk 0:02:58]}  Bg7 {[%clk 0:02:53]} 4. Nf3 {[%clk 0:02:56]}  c6 {[%clk 0:02:39]} 5. a4 {[%clk 0:02:51]}  a5 {[%clk 0:02:34]} 6. Bc4 {[%clk 0:02:47]}  Nf6 {[%clk 0:02:30]} 7. O-O {[%clk 0:02:46]}  O-O {[%clk 0:02:30]} 8. e5 {[%clk 0:02:43]}  Ne8 {[%clk 0:02:23]} 9. h3 {[%clk 0:02:39]}  Nc7 {[%clk 0:02:23]} 10. Bg5 {[%clk 0:02:31]}  Be6 {[%clk 0:02:19]} 11. Qe2 {[%clk 0:02:15]}  Bxc4 {[%clk 0:02:16]} 12. Qxc4 {[%clk 0:02:14]}  Ne6 {[%clk 0:02:14]} 13. Bh4 {[%clk 0:02:07]}  d5 {[%clk 0:02:03]} 14. Qb3 {[%clk 0:02:03]}  Qd7 {[%clk 0:02:01]} 15. Ne2 {[%clk 0:01:56]}  Na6 {[%clk 0:02:00]} 16. c3 {[%clk 0:01:56]}  Rab8 {[%clk 0:01:54]} 17. Qc2 {[%clk 0:01:50]}  Rfc8 {[%clk 0:01:46]} 18. Rfd1 {[%clk 0:01:47]}  c5 {[%clk 0:01:37]} 19. Qd2 {[%clk 0:01:35]}  cxd4 {[%clk 0:01:36]} 20. cxd4 {[%clk 0:01:34]}  Nb4 {[%clk 0:01:32]} 21. Nc3 {[%clk 0:01:34]}  Nc7 {[%clk 0:01:20]} 22. Nh2 {[%clk 0:01:28]}  Ne6 {[%clk 0:01:09]} 23. Ng4 {[%clk 0:01:26]}  Rc4 {[%clk 0:01:07]} 24. Nb5 {[%clk 0:01:17]}  Nc7 {[%clk 0:01:03]} 25. Nxc7 {[%clk 0:01:09]}  Qxc7 {[%clk 0:01:02]} 26. Nh6+ {[%clk 0:01:08]}  Bxh6 {[%clk 0:01:01]} 27. Qxh6 {[%clk 0:01:08]}  Nc2 {[%clk 0:00:53]} 28. Bf6 {[%clk 0:01:05]} 1-0


[Site "https://www.chess.com"]